fUSD/lending_fUSD_20250308
["ID","MTS","AMOUNT","RATE_DAILY","PERIOD"]
[355658702,1741443063733,-500.0,9.589e-05,2]
[355658703,1741443063743,-1252.52,9.589e-05,2]
[355658704,1741443063753,-4734.27,9.589e-05,2]
[355658705,1741443063763,-1857.06,9.589e-05,2]
[355658706,1741443063772,-4064.24,9.589e-05,2]
[355658707,1741443063781,-500.0,9.589e-05,2]
[355658708,1741443063791,-3230.72,9.589e-05,2]
[355658709,1741443063800,-3462.55,9.589e-05,2]
[355658710,1741443063809,-1025.23,9.589e-05,2]
[355658711,1741443063819,-1206.67,9.589e-05,2]
[355658712,1741443063828,-8849.92,9.589e-05,2]
[355658713,1741443063838,-5008.55,9.589e-05,2]
[355658714,1741443063848,-1496.91,9.589e-05,2]
[355658715,1741443063858,-2070.31,9.589e-05,2]
[355658716,1741443063868,-500.0,9.589e-05,2]
[355658717,1741443063877,-500.0,9.589e-05,2]
[355658718,1741443063887,-9292.35,9.589e-05,2]
[355658719,1741443063897,-42303.85,9.589e-05,2]
[355658720,1741443063907,-1320.92,9.589e-05,2]
[355658721,1741443063917,-1380.62,9.589e-05,2]
[355658722,1741443063926,-678.39,9.589e-05,2]
[355658723,1741443063936,-1829.16,9.589e-05,2]
[355658724,1741443063946,-454.11462199,9.589e-05,2]
[355658725,1741443063956,-1061.9,9.589e-05,2]
[355658726,1741443063965,-500.0,9.589e-05,2]
[355658727,1741443063975,-16762.17,9.589e-05,2]
[355658728,1741443063985,-9258.24,9.589e-05,2]
[355658729,1741443064004,-1142.2,9.589e-05,2]
[355658730,1741443064014,-1882.17,9.589e-05,2]
[355658731,1741443064024,-2252.9,9.589e-05,2]
[355658732,1741443064034,-3242.24,9.589e-05,2]
[355658733,1741443064045,-2112.24,9.589e-05,2]
[355658734,1741443064055,-3163.21,9.589e-05,2]
[355658735,1741443064065,-4429.17,9.589e-05,2]
[355658736,1741443064075,-2892.84,9.589e-05,2]
[355658737,1741443064085,-500.0,9.589e-05,2]
[355658738,1741443064094,-617.39,9.589e-05,2]
[355658739,1741443064104,-9621.9,9.589e-05,2]
[355658740,1741443064114,-801.54,9.589e-05,2]
[355658741,1741443064123,-565.35,9.589e-05,2]
[355658742,1741443064133,-2649.31,9.589e-05,2]
[355658743,1741443064143,-504.74,9.589e-05,2]
[355658744,1741443064152,-500.0,9.589e-05,2]
[355658745,1741443064162,-2954.68,9.589e-05,2]
[355658746,1741443064171,-1030.66,9.589e-05,2]
[355658747,1741443064349,-596.27,9.589e-05,2]
[355658748,1741443064359,-861.22,9.589e-05,2]
[355658749,1741443064369,-20992.67,9.67e-05,2]
[355658750,1741443064379,-4780.95,9.67e-05,2]
[355658751,1741443064388,-19999.99,9.67e-05,2]
[355658752,1741443064397,-433.39831495,9.835e-05,2]
[355658753,1741443064407,-433.0,9.848e-05,2]
[355658754,1741443064416,-2612.13,9.862e-05,2]
[355658755,1741443064425,-500.0,9.863e-05,2]
[355658756,1741443064435,-500.0,9.863e-05,2]
[355658757,1741443064446,-560.61,9.863e-05,2]
[355658758,1741443064455,-500.0,9.863e-05,2]
[355658759,1741443064465,-520.96,9.863e-05,2]
[355658760,1741443064474,-512.35,9.863e-05,2]
[355658761,1741443064483,-629.25,9.863e-05,2]
[355658762,1741443064493,-581.53,9.863e-05,2]
[355658763,1741443064502,-500.0,9.863e-05,2]
[355658764,1741443064511,-545.15,9.863e-05,2]
[355658765,1741443064521,-500.0,9.863e-05,2]
[355658766,1741443064530,-500.0,9.863e-05,2]
[355658767,1741443064540,-500.0,9.863e-05,2]
[355658768,1741443064549,-500.0,9.863e-05,2]
[355658769,1741443064558,-500.0,9.863e-05,2]
[355658770,1741443064567,-768.03,9.863e-05,2]
[355658771,1741443064576,-524.49,9.863e-05,2]
[355658772,1741443064585,-500.0,9.863e-05,2]
[355658773,1741443064595,-500.0,9.863e-05,2]
[355658774,1741443064603,-615.62,9.863e-05,2]
[355658775,1741443064613,-500.0,9.863e-05,2]
[355658776,1741443064622,-552.32,9.863e-05,2]
[355658777,1741443064631,-422.3524675,9.863e-05,2]
[355658778,1741443064641,-660.81,9.863e-05,2]
[355658779,1741443064650,-754.13,9.863e-05,2]
[355658780,1741443064659,-727.614314,9.863e-05,2]
[355658781,1741443064668,-500.0,9.863e-05,2]
[355658782,1741443064678,-500.0,9.863e-05,2]
[355658783,1741443064687,-653.54,9.863e-05,2]
[355658784,1741443064697,-559.78,9.863e-05,2]
[355658785,1741443064706,-513.83,9.863e-05,2]
[355658786,1741443064716,-500.0,9.863e-05,2]
[355658787,1741443064725,-500.0,9.863e-05,2]
[355658788,1741443064735,-803.72,9.863e-05,2]
[355658789,1741443064745,-563.72,9.863e-05,2]
[355658790,1741443064754,-500.0,9.863e-05,2]
[355658791,1741443064763,-500.0,9.863e-05,2]
[355658792,1741443064772,-500.0,9.863e-05,2]
[355658793,1741443064781,-761.99,9.863e-05,2]
[355658794,1741443064791,-500.0,9.863e-05,2]
[355658795,1741443064800,-433.052602,9.863e-05,2]
[355658796,1741443064809,-592.61,9.863e-05,2]
[355658797,1741443064818,-786.73,9.863e-05,2]
[355658798,1741443064827,-1010.45,9.863e-05,2]
[355658799,1741443064836,-729.33,9.863e-05,2]
[355658800,1741443064845,-544.51,9.863e-05,2]
[355658801,1741443064855,-500.0,9.863e-05,2]
[355658802,1741443064864,-734.85,9.863e-05,2]
[355658803,1741443064873,-500.0,9.863e-05,2]
[355658804,1741443064882,-500.0,9.863e-05,2]
[355658805,1741443064892,-500.0,9.863e-05,2]
[355658806,1741443064901,-1249.74,9.863e-05,2]
[355658807,1741443064911,-511.29,9.863e-05,2]
[355658808,1741443064921,-500.0,9.863e-05,2]
[355658809,1741443064931,-165.11509276,9.863e-05,2]
[355658810,1741443064941,-500.0,9.863e-05,2]
[355658811,1741443064952,-739.08,9.863e-05,2]
[355658812,1741443064963,-901.97,9.863e-05,2]
[355658813,1741443064973,-506.97,9.863e-05,2]
[355658814,1741443064984,-700.65,9.863e-05,2]
[355658815,1741443064997,-500.0,9.863e-05,2]
[355658816,1741443065007,-500.0,9.863e-05,2]
[355658817,1741443065017,-746.52,9.863e-05,2]
[355658818,1741443065026,-500.0,9.863e-05,2]
[355658819,1741443065037,-1023.75,9.863e-05,2]
[355658820,1741443065047,-1788.71,9.863e-05,2]
[355658821,1741443065056,-538.82,9.863e-05,2]
[355658822,1741443065066,-917.24,9.863e-05,2]
[355658823,1741443065075,-684.24,9.863e-05,2]
[355658824,1741443065085,-758.36,9.863e-05,2]
[355658825,1741443065094,-563.39,9.863e-05,2]
[355658826,1741443065104,-1058.88,9.863e-05,2]
[355658827,1741443065113,-500.0,9.863e-05,2]
[355658828,1741443065122,-637.39,9.863e-05,2]
[355658829,1741443065131,-648.49,9.863e-05,2]
[355658830,1741443065141,-500.0,9.863e-05,2]
[355658831,1741443065150,-531.55,9.863e-05,2]
[355658832,1741443065160,-500.0,9.863e-05,2]
[355658833,1741443065169,-723.58,9.863e-05,2]
[355658834,1741443065179,-500.0,9.863e-05,2]
[355658835,1741443065188,-780.28,9.863e-05,2]
[355658836,1741443065199,-500.0,9.863e-05,2]
[355658837,1741443065208,-570.62,9.863e-05,2]
[355658838,1741443065217,-1157.7,9.863e-05,2]
[355658839,1741443065226,-605.01,9.863e-05,2]
[355658840,1741443065235,-500.0,9.863e-05,2]
[355658841,1741443065244,-854.81,9.863e-05,2]
[355658842,1741443065254,-500.0,9.863e-05,2]
[355658843,1741443065263,-1240.07,9.863e-05,2]
[355658844,1741443065272,-462.9467442,9.863e-05,2]
[355658845,1741443065282,-623.79,9.863e-05,2]
[355658846,1741443065291,-529.06569778,9.863e-05,2]
[355658847,1741443065347,-313.99430222,9.863e-05,2]
[355658848,1741443065356,-450.68915699,9.863e-05,2]
[355658849,1741443065397,-508.07084301,9.863e-05,2]
[355658850,1741443065407,-536.01293347,9.863e-05,2]
[355658851,1741443065418,-92.50706653,9.863e-05,2]
[355658852,1741443065427,-500.0,9.863e-05,2]
[355658853,1741443065436,-574.65,9.863e-05,2]
[355658854,1741443065445,-506.63,9.863e-05,2]
[355658855,1741443065455,-679.56,9.863e-05,2]
[355658856,1741443065464,-500.0,9.863e-05,2]
[355658857,1741443065474,-851.33,9.863e-05,2]
[355658858,1741443065483,-1061.72,9.863e-05,2]
[355658859,1741443065492,-500.0,9.863e-05,2]
[355658860,1741443065502,-500.0,9.863e-05,2]
[355658861,1741443065511,-500.0,9.863e-05,2]
[355658862,1741443065520,-500.0,9.863e-05,2]
[355658863,1741443065530,-966.78,9.863e-05,2]
[355658864,1741443065539,-851.53,9.863e-05,2]
[355658865,1741443065548,-500.0,9.863e-05,2]
[355658866,1741443065557,-673.96,9.863e-05,2]
[355658867,1741443065566,-500.0,9.863e-05,2]
[355658868,1741443065576,-500.0,9.863e-05,2]
[355658869,1741443065585,-1036.71,9.863e-05,2]
[355658870,1741443065594,-500.0,9.863e-05,2]
[355658871,1741443065603,-500.0,9.863e-05,2]
[355658872,1741443065612,-500.0,9.863e-05,2]
[355658873,1741443065622,-695.04,9.863e-05,2]
[355658874,1741443065632,-739.48,9.863e-05,2]
[355658875,1741443065641,-500.0,9.863e-05,2]
[355658876,1741443065652,-500.0,9.863e-05,2]
[355658877,1741443065662,-500.0,9.863e-05,2]
[355658878,1741443065675,-500.0,9.863e-05,2]
[355658879,1741443065685,-500.0,9.863e-05,2]
[355658880,1741443065695,-513.98,9.863e-05,2]
[355658881,1741443065705,-653.93,9.863e-05,2]
[355658882,1741443065715,-870.9,9.863e-05,2]
[355658883,1741443065724,-933.52,9.863e-05,2]
[355658884,1741443065733,-681.29,9.863e-05,2]
[355658885,1741443065743,-500.0,9.863e-05,2]
[355658886,1741443065754,-500.0,9.863e-05,2]
[355658887,1741443065764,-500.0,9.863e-05,2]
[355658888,1741443065774,-566.17,9.863e-05,2]
[355658889,1741443065785,-760.4,9.863e-05,2]
[355658890,1741443065795,-531.76,9.863e-05,2]
[355658891,1741443065804,-1186.16,9.863e-05,2]
[355658892,1741443065814,-758.39,9.863e-05,2]
[355658893,1741443065824,-380.2,9.863e-05,2]
[355658894,1741443065834,-557.4,9.863e-05,2]
[355658895,1741443065844,-1238.95,9.863e-05,2]
[355658896,1741443065855,-1214.84,9.863e-05,2]
[355658897,1741443065865,-1401.54,9.863e-05,2]
[355658898,1741443065875,-1372.1,9.863e-05,2]
[355658899,1741443065884,-545.4,9.863e-05,2]
[355658900,1741443065894,-1420.4,9.863e-05,2]
[355658901,1741443065903,-500.0,9.863e-05,2]
[355658902,1741443065912,-628.38,9.863e-05,2]
[355658903,1741443065922,-500.0,9.863e-05,2]
[355658904,1741443065931,-500.0,9.863e-05,2]
[355658905,1741443065940,-889.98,9.863e-05,2]
[355658906,1741443065950,-500.0,9.863e-05,2]
[355658907,1741443065959,-986.01,9.863e-05,2]
[355658908,1741443065968,-1398.18,9.863e-05,2]
[355658909,1741443065977,-500.0,9.863e-05,2]
[355658910,1741443065988,-534.5,9.863e-05,2]
[355658911,1741443065999,-500.0,9.863e-05,2]
[355658912,1741443066008,-500.0,9.863e-05,2]
[355658913,1741443066018,-544.92,9.863e-05,2]
[355658914,1741443066027,-919.16,9.863e-05,2]
[355658915,1741443066038,-1207.01,9.863e-05,2]
[355658916,1741443066047,-1344.19,9.863e-05,2]
[355658917,1741443066056,-500.0,9.863e-05,2]
[355658918,1741443066066,-500.0,9.863e-05,2]
[355658919,1741443066075,-1516.04,9.863e-05,2]
[355658920,1741443066085,-1219.17,9.863e-05,2]
[355658921,1741443066094,-733.09,9.863e-05,2]
[355658922,1741443066103,-1350.84,9.863e-05,2]
[355658923,1741443066112,-1187.04,9.863e-05,2]
[355658924,1741443066122,-508.22,9.863e-05,2]
[355658925,1741443066132,-815.81,9.863e-05,2]
[355658926,1741443066141,-793.26,9.863e-05,2]
[355658927,1741443066150,-500.0,9.863e-05,2]
[355658928,1741443066160,-643.27,9.863e-05,2]
[355658929,1741443066169,-500.0,9.863e-05,2]
[355658930,1741443066178,-1669.47,9.863e-05,2]
[355658931,1741443066188,-500.0,9.863e-05,2]
[355658932,1741443066199,-1790.88,9.863e-05,2]
[355658933,1741443066208,-525.59,9.863e-05,2]
[355658934,1741443066218,-1360.38,9.863e-05,2]
[355658935,1741443066227,-708.22,9.863e-05,2]
[355658936,1741443066236,-500.0,9.863e-05,2]
[355658937,1741443066245,-894.22,9.863e-05,2]
[355658938,1741443066254,-582.23,9.863e-05,2]
[355658939,1741443066264,-775.56,9.863e-05,2]
[355658940,1741443066273,-500.0,9.863e-05,2]
[355658941,1741443066282,-500.0,9.863e-05,2]
[355658942,1741443066292,-2448.24,9.863e-05,2]
[355658943,1741443066301,-500.0,9.863e-05,2]
[355658944,1741443066310,-7013.5,9.863e-05,2]
[355658945,1741443066320,-918.85,9.863e-05,2]
[355658946,1741443066330,-1190.86,9.863e-05,2]
[355658947,1741443066340,-839.16,9.863e-05,2]
[355658948,1741443066348,-1966.66,9.863e-05,2]
[355658949,1741443066357,-542.9,9.863e-05,2]
[355658950,1741443066367,-1216.66,9.863e-05,2]
[355658951,1741443066376,-3097.05,9.863e-05,2]
[355658952,1741443066386,-500.0,9.863e-05,2]
[355658953,1741443066395,-500.0,9.863e-05,2]
[355658954,1741443066404,-3024.79,9.863e-05,2]
[355658955,1741443066414,-1118.79,9.863e-05,2]
[355658956,1741443066423,-3322.53,9.863e-05,2]
[355658957,1741443066433,-5739.66,9.863e-05,2]
[355658958,1741443066443,-1387.26,9.863e-05,2]
[355658959,1741443066452,-500.0,9.863e-05,2]
[355658960,1741443066462,-3291.17,9.863e-05,2]
[355658961,1741443066471,-500.0,9.863e-05,2]
[355658962,1741443066480,-827.89,9.863e-05,2]
[355658963,1741443066489,-2261.26,9.863e-05,2]
[355658964,1741443066498,-586.83,9.863e-05,2]
[355658965,1741443066508,-26214.54,9.863e-05,2]
[355658966,1741443066517,-1959.82,9.863e-05,2]
[355658967,1741443066526,-2373.0,9.863e-05,2]
[355658968,1741443066537,-1178.21,9.863e-05,2]
[355658969,1741443066546,-500.0,9.863e-05,2]
[355658970,1741443066555,-875.1,9.863e-05,2]
[355658971,1741443066564,-694.74,9.863e-05,2]
[355658972,1741443066573,-500.0,9.863e-05,2]
[355658973,1741443066582,-2417.9,9.863e-05,2]
[355658974,1741443066592,-1440.82,9.863e-05,2]
[355658975,1741443066602,-618.25,9.863e-05,2]
[355658976,1741443066611,-716.18,9.863e-05,2]
[355658977,1741443066620,-2650.14,9.863e-05,2]
[355658978,1741443066629,-2743.59,9.863e-05,2]
[355658979,1741443066638,-510.66,9.863e-05,2]
[355658980,1741443066648,-1069.98,9.863e-05,2]
[355658981,1741443066657,-3910.16,9.863e-05,2]
[355658982,1741443066666,-920.83,9.863e-05,2]
[355658983,1741443066675,-1495.45,9.863e-05,2]
[355658984,1741443066684,-1851.0,9.863e-05,2]
[355658985,1741443066694,-745.02,9.863e-05,2]
[355658986,1741443066703,-500.0,9.863e-05,2]
[355658987,1741443066712,-3098.62,9.863e-05,2]
[355658988,1741443066724,-668.21,9.863e-05,2]
[355658989,1741443066734,-1004.41,9.863e-05,2]
[355658990,1741443066745,-3488.24,9.863e-05,2]
[355658991,1741443066755,-2252.59,9.863e-05,2]
[355658992,1741443066765,-8501.84,9.863e-05,2]
[355658993,1741443066775,-1721.31,9.863e-05,2]
[355658994,1741443066785,-862.44,9.863e-05,2]
[355658995,1741443066795,-1078.14,9.863e-05,2]
[355658996,1741443066806,-500.0,9.863e-05,2]
[355658997,1741443066816,-885.21,9.863e-05,2]
[355658998,1741443066826,-2630.22,9.863e-05,2]
[355658999,1741443066836,-2081.54,9.863e-05,2]
[355659000,1741443066846,-690.71,9.863e-05,2]
[355659001,1741443066858,-4065.32,9.863e-05,2]
[355659002,1741443066868,-519.29,9.863e-05,2]
[355659003,1741443066877,-2084.55,9.863e-05,2]
[355659004,1741443066887,-4644.52,9.863e-05,2]
[355659005,1741443066896,-799.87,9.863e-05,2]
[355659006,1741443066905,-589.49,9.863e-05,2]
[355659007,1741443066915,-4156.29,9.863e-05,2]
[355659008,1741443066924,-767.74,9.863e-05,2]
[355659009,1741443066933,-1886.77,9.863e-05,2]
[355659010,1741443066943,-1725.43,9.863e-05,2]
[355659011,1741443066953,-500.0,9.863e-05,2]
[355659012,1741443066962,-1698.35,9.863e-05,2]
[355659013,1741443066971,-3160.81,9.863e-05,2]
[355659014,1741443066981,-1242.18,9.863e-05,2]
[355659015,1741443066993,-555.82,9.863e-05,2]
[355659016,1741443067003,-1646.8,9.863e-05,2]
[355659017,1741443067012,-500.0,9.863e-05,2]
[355659018,1741443067022,-500.0,9.863e-05,2]
[355659019,1741443067031,-6451.11,9.863e-05,2]
[355659020,1741443067041,-1917.52,9.863e-05,2]
[355659021,1741443067051,-500.0,9.863e-05,2]
[355659022,1741443067062,-1833.4,9.863e-05,2]
[355659023,1741443067072,-1440.65,9.863e-05,2]
[355659024,1741443067083,-10074.21,9.863e-05,2]
[355659025,1741443067249,-1484.97,9.863e-05,2]
[355659026,1741443067258,-910.58,9.863e-05,2]
[355659027,1741443067267,-854.44,9.863e-05,2]
[355659028,1741443067277,-500.0,9.863e-05,2]
[355659029,1741443067286,-1085.59,9.863e-05,2]
[355659030,1741443067296,-786.84,9.863e-05,2]
[355659031,1741443067305,-3065.61,9.863e-05,2]
[355659032,1741443067314,-3916.11,9.863e-05,2]
[355659033,1741443067324,-3110.92,9.863e-05,2]
[355659034,1741443067333,-500.0,9.863e-05,2]
[355659035,1741443067342,-2070.62,9.863e-05,2]
[355659036,1741443067351,-1877.02,9.863e-05,2]
[355659037,1741443067360,-500.0,9.863e-05,2]
[355659038,1741443067369,-2600.68,9.863e-05,2]
[355659039,1741443067379,-1300.92,9.863e-05,2]
[355659040,1741443067389,-1518.1,9.863e-05,2]
[355659041,1741443067398,-1783.42,9.863e-05,2]
[355659042,1741443067407,-17366.31,9.863e-05,2]
[355659043,1741443067416,-1110.41,9.863e-05,2]
[355659044,1741443067425,-3606.8,9.863e-05,2]
[355659045,1741443067435,-500.0,9.863e-05,2]
[355659046,1741443067444,-1428.23,9.863e-05,2]
[355659047,1741443067454,-1604.73,9.863e-05,2]
[355659048,1741443067463,-2488.11,9.863e-05,2]
[355659049,1741443067472,-4380.18,9.863e-05,2]
[355659050,1741443067481,-1902.18,9.863e-05,2]
[355659051,1741443067491,-2382.88,9.863e-05,2]
[355659052,1741443067501,-500.0,9.863e-05,2]
[355659053,1741443067510,-2615.48,9.863e-05,2]
[355659054,1741443067519,-1056.55,9.863e-05,2]
[355659055,1741443067529,-558.68,9.863e-05,2]
[355659056,1741443067538,-4241.28,9.863e-05,2]
[355659057,1741443067548,-1854.0,9.863e-05,2]
[355659058,1741443067557,-500.0,9.863e-05,2]
[355659059,1741443067566,-1252.52,9.863e-05,2]
[355659060,1741443067575,-4734.27,9.863e-05,2]
[355659061,1741443067585,-4064.24,9.863e-05,2]
[355659062,1741443067594,-1857.06,9.863e-05,2]
[355659063,1741443067603,-500.0,9.863e-05,2]
[355659064,1741443067613,-3230.72,9.863e-05,2]
[355659065,1741443067622,-3462.55,9.863e-05,2]
[355659066,1741443067631,-1025.23,9.863e-05,2]
[355659067,1741443067640,-1206.67,9.863e-05,2]
[355659068,1741443067650,-8849.92,9.863e-05,2]
[355659069,1741443067659,-5008.55,9.863e-05,2]
[355659070,1741443067668,-1496.91,9.863e-05,2]
[355659071,1741443067678,-2070.31,9.863e-05,2]
[355659072,1741443067688,-500.0,9.863e-05,2]
[355659073,1741443067697,-500.0,9.863e-05,2]
[355659074,1741443067707,-7837.88122552,9.863e-05,2]
[355659075,1741443068286,-980.88,9.452e-05,2]
[355659076,1741443068330,-21316.74266069,9.452e-05,2]
[355659077,1741443068339,-367.26055932,9.452e-05,2]
[355659078,1741443068348,-1454.46877448,9.863e-05,2]
[355659079,1741443068356,-42303.85,9.863e-05,2]
[355659080,1741443068366,-1320.92,9.863e-05,2]
[355659081,1741443068375,-1380.62,9.863e-05,2]
[355659082,1741443068385,-678.39,9.863e-05,2]
[355659083,1741443068396,-1061.9,9.863e-05,2]
[355659084,1741443068405,-1829.16,9.863e-05,2]
[355659085,1741443068416,-500.0,9.863e-05,2]
[355659086,1741443068426,-16762.17,9.863e-05,2]
[355659087,1741443068435,-9258.24,9.863e-05,2]
[355659088,1741443068446,-1142.2,9.863e-05,2]
[355659089,1741443068457,-1882.17,9.863e-05,2]
[355659090,1741443068467,-2252.9,9.863e-05,2]
[355659091,1741443068477,-3242.24,9.863e-05,2]
[355659092,1741443068488,-2112.24,9.863e-05,2]
[355659093,1741443068498,-3163.21,9.863e-05,2]
[355659094,1741443068507,-4429.17,9.863e-05,2]
[355659095,1741443068516,-2892.84,9.863e-05,2]
[355659096,1741443068525,-500.0,9.863e-05,2]
[355659097,1741443068535,-617.39,9.863e-05,2]
[355659098,1741443068544,-9621.9,9.863e-05,2]
[355659099,1741443068553,-801.54,9.863e-05,2]
[355659100,1741443068563,-565.35,9.863e-05,2]
[355659101,1741443068571,-2649.31,9.863e-05,2]
[355659102,1741443068581,-504.74,9.863e-05,2]
[355659103,1741443068590,-500.0,9.863e-05,2]
[355659104,1741443068599,-2954.68,9.863e-05,2]
[355659105,1741443068610,-1030.66,9.863e-05,2]
[355659106,1741443068622,-596.27,9.863e-05,2]
[355659107,1741443068631,-861.22,9.863e-05,2]
[355659108,1741443068643,-456.8886927,9.896e-05,2]
[355659109,1741443068652,-241.7933,9.9e-05,2]
[355659110,1741443068661,-1000.0,9.9e-05,2]
[355659111,1741443068670,-1000.0,9.9e-05,2]
[355659112,1741443068679,-1000.0,9.9e-05,2]
[355659113,1741443068688,-1000.0,9.9e-05,2]
[355659114,1741443068698,-1000.0,9.9e-05,2]
[355659115,1741443068708,-1000.0,9.9e-05,2]
[355659116,1741443068717,-1000.0,9.9e-05,2]
[355659117,1741443068726,-1000.0,9.9e-05,2]
[355659118,1741443068735,-20924.44000375,9.9e-05,3]
[355659119,1741443068746,-26015.20999985,9.9e-05,3]
[355659120,1741443068757,-4411.6,9.9e-05,3]
[355659121,1741443068768,-6497.4,9.9e-05,3]
[355659122,1741443068779,-5510.5999,9.9e-05,3]
[355659123,1741443068790,-15705.900014,9.9e-05,3]
[355659124,1741443068801,-1785.0,9.9e-05,3]
[355659125,1741443068812,-1829.6001,9.9e-05,3]
[355659126,1741443068823,-4178.000024,9.9e-05,3]
[355659127,1741443068833,-10074.27652081,9.9e-05,3]
[355659128,1741443068843,-3671.78015,9.9e-05,3]
[355659129,1741443068852,-4478.40012,9.9e-05,3]
[355659130,1741443068861,-3613.57684472,9.9e-05,3]
[355659131,1741443415157,1183.53875421,8e-05,2]
[355659132,1741443415181,4519.79124579,8e-05,2]
[355659133,1741443483060,1900.44942646,7.993e-05,2]
[355659134,1741443585608,284.87,7.667e-05,2]
[355659135,1741443618437,170.35,7.928e-05,2]
[355659136,1741443665427,-150.0,8.092e-05,2]
[355659137,1741443665458,-550.0,8.092e-05,2]
[355659138,1741443665480,-4424.7737,8.093e-05,2]
[355659139,1741443665504,-1900.44942646,8.119e-05,2]
[355659140,1741443665526,-1000.0,8.119e-05,2]
[355659141,1741443665548,-150.0,8.124e-05,2]
[355659142,1741443665577,-200.0,8.14e-05,2]
[355659143,1741443665599,-1252.81,8.189e-05,2]
[355659144,1741443665621,-4097.77755622,8.209e-05,2]
[355659145,1741443665643,-1274.18931732,8.218e-05,2]
[355659165,1741443946006,172.33,7.932e-05,2]
[355659166,1741444028100,7199.0,0.00020111,120]
[355659215,1741444232379,-150.0,8.141e-05,2]
[355659216,1741444232390,-151.46913801,8.163e-05,2]
[355659217,1741444232400,-150.0,8.165e-05,2]
[355659218,1741444232410,-172.33,8.17e-05,2]
[355659219,1741444232420,-150.0,8.187e-05,2]
[355659220,1741444232430,-2600.40082939,8.188e-05,2]
[355659225,1741444238199,-3100.6336057,8.188e-05,2]
[355659226,1741444238259,-2198.87610881,8.188e-05,2]
[355659227,1741444238272,-727.70697547,8.188e-05,2]
[355659228,1741444238284,-2000.942007,8.188e-05,2]
[355659229,1741444238295,-3231.50064894,8.188e-05,2]
[355659230,1741444238307,-12073.477402,8.188e-05,2]
[355659231,1741444238325,-37889.17011152,8.188e-05,2]
[355659427,1741444240310,-28077.94404464,8.188e-05,2]
[355659836,1741444244348,-9097.30069067,8.188e-05,2]
[355659837,1741444244367,-485.44999993,8.188e-05,2]
[355660106,1741444246719,-17920.24753646,8.188e-05,2]
[355660109,1741444246731,-1659.73215956,8.188e-05,2]
[355660112,1741444246742,-4506.90732,8.188e-05,2]
[355660216,1741444462024,5758.8122582,0.0002,120]
[355660218,1741445102598,406.76,7.578e-05,2]
[355660317,1741445432342,-289.89542101,8.09e-05,2]
[355660318,1741445432491,-371.75190304,8.09e-05,2]
[355660319,1741445432543,-384.20133856,8.09e-05,2]
[355660324,1741445438206,-262.18433739,8.09e-05,2]
[355660325,1741445438217,-550.0,8.127e-05,2]
[355660326,1741445438227,-150.0,8.164e-05,2]
[355660327,1741445438237,-7740.62126812,8.167e-05,2]
[355660354,1741445440477,-3973.02873188,8.167e-05,2]
[355660355,1741445440487,-14367.55407386,8.188e-05,2]
[355660356,1741445440497,-150.0,8.188e-05,2]
[355660357,1741445440506,-500.0,8.189e-05,2]
[355660358,1741445440516,-500.0,8.189e-05,2]
[355660359,1741445440526,-500.0,8.189e-05,2]
[355660360,1741445440536,-500.0,8.189e-05,2]
[355660361,1741445440546,-500.0,8.189e-05,2]
[355660362,1741445440556,-465.87106846,8.189e-05,2]
[355660363,1741445440566,-500.0,8.189e-05,2]
[355660364,1741445440576,-150.0,8.189e-05,2]
[355660365,1741445440586,-184.752728,8.189e-05,2]
[355660366,1741445440596,-37429.07843069,8.189e-05,2]
[355660367,1741445440605,-3359.60016736,8.189e-05,2]
[355660368,1741445440614,-1248.81683572,8.189e-05,2]
[355660369,1741445440625,-2283.6350145,8.19e-05,2]
[355660370,1741445440638,-6911.09510315,8.19e-05,2]
[355660371,1741445440649,-1173.70891906,8.19e-05,2]
[355660394,1741445445041,-2605.36032,8.19e-05,2]
[355660395,1741445445053,-18449.0,8.19e-05,2]
[355660396,1741445445189,-901.84078003,8.19e-05,2]
[355660397,1741445445202,-346816.4869359,8.19e-05,2]
[355660398,1741445445219,-1243.33479485,8.19e-05,2]
[355660399,1741445445290,-13473.52175666,8.19e-05,2]
[355660400,1741445445307,-13832.82995373,8.19e-05,2]
[355660402,1741445446275,-11258.983078,8.19e-05,2]